[Event "January 9 Early 2024"]
[Site "https://www.chess.com"]
[Date "2024.01.11"]
[Round "4"]
[White "Mahdavi, Reza"]
[Black "So, Wesley"]
[Result "0-1"]
[Board "53"]
[TimeControl "180+1"]
[WhiteFideId "12595926"]
[BlackFideId "5202213"]
[WhiteElo "2869"]
[BlackElo "3062"]
[WhiteTeam "IRI"]
[BlackTeam "USA"]
[WhiteClock "0:00:46"]
[BlackClock "0:00:47"]

1. e4 {[%clk 0:02:59]}  e6 {[%clk 0:02:57]} 2. d4 {[%clk 0:02:58]}  d5 {[%clk 0:02:58]} 3. Nd2 {[%clk 0:02:59]}  Be7 {[%clk 0:02:54]} 4. Ngf3 {[%clk 0:02:53]}  Nf6 {[%clk 0:02:53]} 5. Ne5 {[%clk 0:02:53]}  dxe4 {[%clk 0:02:47]} 6. c3 {[%clk 0:02:49]}  O-O {[%clk 0:02:34]} 7. Qe2 {[%clk 0:01:54]}  c5 {[%clk 0:02:22]} 8. dxc5 {[%clk 0:01:52]}  Qd5 {[%clk 0:02:19]} 9. Ndc4 {[%clk 0:01:50]}  Nbd7 {[%clk 0:01:54]} 10. Nxd7 {[%clk 0:01:42]}  Bxd7 {[%clk 0:01:53]} 11. Be3 {[%clk 0:01:40]}  Ba4 {[%clk 0:01:36]} 12. b3 {[%clk 0:01:34]}  Bb5 {[%clk 0:01:35]} 13. Rd1 {[%clk 0:01:32]}  Qf5 {[%clk 0:01:02]} 14. Nd6 {[%clk 0:01:28]}  Bxd6 {[%clk 0:01:02]} 15. Qxb5 {[%clk 0:01:28]}  Be5 {[%clk 0:01:02]} 16. Qc4 {[%clk 0:01:20]}  b5 {[%clk 0:00:54]} 17. cxb6 {[%clk 0:00:56]}  Rac8 {[%clk 0:00:53]} 18. Qe2 {[%clk 0:00:57]}  Bxc3+ {[%clk 0:00:50]} 19. Bd2 {[%clk 0:00:58]}  axb6 {[%clk 0:00:50]} 20. Bxc3 {[%clk 0:00:44]}  Rxc3 {[%clk 0:00:51]} 21. Qd2 {[%clk 0:00:45]}  e3 {[%clk 0:00:48]} 22. fxe3 {[%clk 0:00:45]}  Ne4 {[%clk 0:00:48]} 23. Bd3 {[%clk 0:00:46]}  Rxd3 {[%clk 0:00:47]} 0-1

[Event "January 9 Early 2024"]
[Site "https://www.chess.com"]
[Date "2024.01.11"]
[Round "4"]
[White "Ljukin, Sergei"]
[Black "Martinez Ramirez, Lennis"]
[Result "0-1"]
[Board "55"]
[TimeControl "180+1"]
[WhiteFideId "14102200"]
[BlackFideId "3509079"]
[WhiteElo "2533"]
[BlackElo "2719"]
[WhiteTeam "UKR"]
[BlackTeam "CUB"]
[WhiteClock "0:00:02"]
[BlackClock "0:01:48"]

1. e4 {[%clk 0:03:00]}  c5 {[%clk 0:02:57]} 2. Nf3 {[%clk 0:03:01]}  e6 {[%clk 0:02:50]} 3. d4 {[%clk 0:03:01]}  cxd4 {[%clk 0:02:50]} 4. Nxd4 {[%clk 0:03:01]}  Qc7 {[%clk 0:02:51]} 5. Bd3 {[%clk 0:03:01]}  a6 {[%clk 0:02:51]} 6. Qe2 {[%clk 0:03:01]}  Nc6 {[%clk 0:02:49]} 7. Nxc6 {[%clk 0:03:00]}  bxc6 {[%clk 0:02:50]} 8. e5 {[%clk 0:03:00]}  Ne7 {[%clk 0:02:48]} 9. Bf4 {[%clk 0:02:59]}  Ng6 {[%clk 0:02:48]} 10. Bg3 {[%clk 0:02:59]}  Rb8 {[%clk 0:02:47]} 11. b3 {[%clk 0:02:53]}  d5 {[%clk 0:02:43]} 12. h4 {[%clk 0:02:48]}  h5 {[%clk 0:02:38]} 13. Nd2 {[%clk 0:02:26]}  Bb4 {[%clk 0:02:38]} 14. O-O {[%clk 0:02:06]}  Bc3 {[%clk 0:02:36]} 15. Rae1 {[%clk 0:01:24]}  Qe7 {[%clk 0:02:35]} 16. Bxg6 {[%clk 0:01:19]}  fxg6 {[%clk 0:02:35]} 17. Qd3 {[%clk 0:01:17]}  Bxd2 {[%clk 0:02:28]} 18. Qxd2 {[%clk 0:01:17]}  O-O {[%clk 0:02:28]} 19. Qg5 {[%clk 0:00:42]}  Qe8 {[%clk 0:02:22]} 20. Qe3 {[%clk 0:00:21]}  a5 {[%clk 0:02:20]} 21. f4 {[%clk 0:00:16]}  Ba6 {[%clk 0:02:20]} 22. Rf2 {[%clk 0:00:16]}  Rb4 {[%clk 0:02:19]} 23. Qd2 {[%clk 0:00:09]}  c5 {[%clk 0:02:12]} 24. a3 {[%clk 0:00:08]}  Rb5 {[%clk 0:02:09]} 25. Rf3 {[%clk 0:00:05]}  d4 {[%clk 0:02:06]} 26. Bf2 {[%clk 0:00:04]}  Bb7 {[%clk 0:02:06]} 27. Rd3 {[%clk 0:00:04]}  Qc6 {[%clk 0:02:06]} 28. Bg3 {[%clk 0:00:03]}  a4 {[%clk 0:02:05]} 29. b4 {[%clk 0:00:02]}  cxb4 {[%clk 0:02:00]} 30. axb4 {[%clk 0:00:03]}  Rxb4 {[%clk 0:02:00]} 31. Re2 {[%clk 0:00:03]}  Rc4 {[%clk 0:01:59]} 32. Rxd4 {[%clk 0:00:03]}  a3 {[%clk 0:01:55]} 33. Rxc4 {[%clk 0:00:03]}  Qxc4 {[%clk 0:01:55]} 34. c3 {[%clk 0:00:02]}  Ra8 {[%clk 0:01:53]} 35. Qa2 {[%clk 0:00:02]}  Qxe2 {[%clk 0:01:48]} 0-1

[Event "January 9 Early 2024"]
[Site "https://www.chess.com"]
[Date "2024.01.11"]
[Round "4"]
[White "Kantans, Toms"]
[Black "Filipovic, Slobodan J"]
[Result "1-0"]
[Board "56"]
[TimeControl "180+1"]
[WhiteFideId "11602945"]
[BlackFideId "939633"]
[WhiteElo "2623"]
[BlackElo "2408"]
[WhiteTeam "LAT"]
[BlackTeam "SRB"]
[WhiteClock "0:00:54"]
[BlackClock "0:00:56"]

1. e4 {[%clk 0:03:00]}  c5 {[%clk 0:03:00]} 2. Nf3 {[%clk 0:02:59]}  Nc6 {[%clk 0:03:00]} 3. Bb5 {[%clk 0:02:58]}  Nf6 {[%clk 0:02:59]} 4. Nc3 {[%clk 0:02:58]}  Qc7 {[%clk 0:02:59]} 5. O-O {[%clk 0:02:52]}  e6 {[%clk 0:02:55]} 6. Re1 {[%clk 0:02:49]}  Nd4 {[%clk 0:02:52]} 7. Bf1 {[%clk 0:02:43]}  Ng4 {[%clk 0:02:47]} 8. g3 {[%clk 0:02:43]}  h5 {[%clk 0:02:44]} 9. d3 {[%clk 0:02:34]}  a6 {[%clk 0:02:43]} 10. h3 {[%clk 0:02:21]}  Nxf3+ {[%clk 0:02:36]} 11. Qxf3 {[%clk 0:02:22]}  Ne5 {[%clk 0:02:36]} 12. Qe2 {[%clk 0:02:15]}  d6 {[%clk 0:02:33]} 13. Bg2 {[%clk 0:02:14]}  b5 {[%clk 0:02:31]} 14. f4 {[%clk 0:02:14]}  Nc6 {[%clk 0:02:30]} 15. Qf2 {[%clk 0:02:12]}  Bb7 {[%clk 0:02:29]} 16. a4 {[%clk 0:02:12]}  b4 {[%clk 0:02:28]} 17. Nd1 {[%clk 0:02:09]}  Nd4 {[%clk 0:02:28]} 18. Ne3 {[%clk 0:02:07]}  Be7 {[%clk 0:02:24]} 19. b3 {[%clk 0:02:04]}  a5 {[%clk 0:02:23]} 20. Bb2 {[%clk 0:02:03]}  g6 {[%clk 0:02:14]} 21. Nc4 {[%clk 0:01:55]}  e5 {[%clk 0:02:01]} 22. Rf1 {[%clk 0:01:47]}  f6 {[%clk 0:01:58]} 23. h4 {[%clk 0:01:31]}  Bc8 {[%clk 0:01:39]} 24. Ne3 {[%clk 0:01:29]}  Be6 {[%clk 0:01:29]} 25. f5 {[%clk 0:01:29]}  gxf5 {[%clk 0:01:29]} 26. exf5 {[%clk 0:01:29]}  O-O-O {[%clk 0:01:10]} 27. fxe6 {[%clk 0:01:29]}  f5 {[%clk 0:01:10]} 28. Nd5 {[%clk 0:01:12]}  Qa7 {[%clk 0:01:09]} 29. Bxd4 {[%clk 0:01:11]}  cxd4 {[%clk 0:01:06]} 30. Qxf5 {[%clk 0:01:11]}  Rdf8 {[%clk 0:01:05]} 31. Qe4 {[%clk 0:01:08]}  Rhg8 {[%clk 0:00:58]} 32. Nxe7+ {[%clk 0:00:54]}  Qxe7 {[%clk 0:00:56]} 33. Qa8+ {[%clk 0:00:54]} 1-0

[Event "January 9 Early 2024"]
[Site "https://www.chess.com"]
[Date "2024.01.11"]
[Round "4"]
[White "Piesik, Piotr"]
[Black "Goncalves, Samuel Jesus P"]
[Result "1-0"]
[Board "58"]
[TimeControl "180+1"]
[WhiteFideId "1136194"]
[BlackFideId "1945130"]
[WhiteElo "2672"]
[BlackElo "2421"]
[WhiteTeam "CZE"]
[BlackTeam "POR"]
[WhiteClock "0:01:39"]
[BlackClock "0:00:12"]

1. Nf3 {[%clk 0:02:57]}  Nf6 {[%clk 0:02:59]} 2. g3 {[%clk 0:02:57]}  g6 {[%clk 0:02:57]} 3. Bg2 {[%clk 0:02:57]}  Bg7 {[%clk 0:02:58]} 4. O-O {[%clk 0:02:58]}  O-O {[%clk 0:02:58]} 5. d4 {[%clk 0:02:59]}  d6 {[%clk 0:02:51]} 6. Nbd2 {[%clk 0:02:58]}  Nbd7 {[%clk 0:02:50]} 7. e4 {[%clk 0:02:58]}  c5 {[%clk 0:02:43]} 8. c3 {[%clk 0:02:58]}  Qc7 {[%clk 0:02:24]} 9. Qe2 {[%clk 0:02:56]}  e5 {[%clk 0:02:13]} 10. dxe5 {[%clk 0:02:54]}  dxe5 {[%clk 0:02:14]} 11. a4 {[%clk 0:02:53]}  b6 {[%clk 0:02:12]} 12. Rd1 {[%clk 0:02:49]}  Bb7 {[%clk 0:02:12]} 13. Ne1 {[%clk 0:02:46]}  Rfd8 {[%clk 0:02:10]} 14. Nc4 {[%clk 0:02:46]}  Ba6 {[%clk 0:02:00]} 15. Nc2 {[%clk 0:02:43]}  Nf8 {[%clk 0:01:52]} 16. Bg5 {[%clk 0:02:41]}  Ne6 {[%clk 0:01:48]} 17. Bxf6 {[%clk 0:02:40]}  Bxf6 {[%clk 0:01:49]} 18. N2e3 {[%clk 0:02:39]}  Bg7 {[%clk 0:01:29]} 19. Nd5 {[%clk 0:02:35]}  Qb7 {[%clk 0:01:29]} 20. Bf1 {[%clk 0:02:33]}  Nc7 {[%clk 0:01:17]} 21. Nxc7 {[%clk 0:02:08]}  Qxc7 {[%clk 0:01:17]} 22. Qf3 {[%clk 0:02:07]}  Rxd1 {[%clk 0:01:01]} 23. Rxd1 {[%clk 0:02:06]}  Rd8 {[%clk 0:01:01]} 24. Ne3 {[%clk 0:02:06]}  Bb7 {[%clk 0:00:49]} 25. Bc4 {[%clk 0:02:01]}  Rxd1+ {[%clk 0:00:40]} 26. Nxd1 {[%clk 0:02:02]}  Kf8 {[%clk 0:00:35]} 27. Ne3 {[%clk 0:02:01]}  f5 {[%clk 0:00:32]} 28. Bd5 {[%clk 0:01:56]}  Bxd5 {[%clk 0:00:32]} 29. Nxd5 {[%clk 0:01:54]}  Qd7 {[%clk 0:00:30]} 30. exf5 {[%clk 0:01:48]}  gxf5 {[%clk 0:00:29]} 31. Ne3 {[%clk 0:01:48]}  Qxa4 {[%clk 0:00:21]} 32. Qxf5+ {[%clk 0:01:46]}  Kg8 {[%clk 0:00:20]} 33. Qe6+ {[%clk 0:01:44]}  Kf8 {[%clk 0:00:19]} 34. Nf5 {[%clk 0:01:40]}  Qd1+ {[%clk 0:00:15]} 35. Kg2 {[%clk 0:01:40]}  Qd8 {[%clk 0:00:15]} 36. Nd6 {[%clk 0:01:40]}  Qa8+ {[%clk 0:00:12]} 37. Kg1 {[%clk 0:01:39]} 1-0

[Event "January 9 Early 2024"]
[Site "https://www.chess.com"]
[Date "2024.01.11"]
[Round "4"]
[White "Materia, Marco"]
[Black "Skatchkov, Valery"]
[Result "0-1"]
[Board "64"]
[TimeControl "180+1"]
[WhiteFideId "45150451"]
[BlackFideId "24195812"]
[WhiteElo "2810"]
[BlackElo "2612"]
[WhiteTeam "FRA"]
[BlackTeam "RUS"]
[WhiteClock "0:00:45"]
[BlackClock "0:01:10"]

1. Nf3 {[%clk 0:03:00]}  d5 {[%clk 0:02:59]} 2. e3 {[%clk 0:03:00]}  c5 {[%clk 0:02:56]} 3. c4 {[%clk 0:02:57]}  d4 {[%clk 0:02:56]} 4. exd4 {[%clk 0:02:55]}  cxd4 {[%clk 0:02:57]} 5. d3 {[%clk 0:02:55]}  Nc6 {[%clk 0:02:57]} 6. g3 {[%clk 0:02:56]}  Nf6 {[%clk 0:02:56]} 7. Bg2 {[%clk 0:02:57]}  e6 {[%clk 0:02:56]} 8. O-O {[%clk 0:02:57]}  Bc5 {[%clk 0:02:57]} 9. Bg5 {[%clk 0:02:55]}  O-O {[%clk 0:02:49]} 10. Nbd2 {[%clk 0:02:55]}  Be7 {[%clk 0:02:44]} 11. Re1 {[%clk 0:02:52]}  a5 {[%clk 0:02:43]} 12. Ne5 {[%clk 0:02:49]}  Nxe5 {[%clk 0:02:32]} 13. Rxe5 {[%clk 0:02:49]}  Nd7 {[%clk 0:02:28]} 14. Bxe7 {[%clk 0:02:48]}  Qxe7 {[%clk 0:02:29]} 15. Rb5 {[%clk 0:02:45]}  Nc5 {[%clk 0:02:19]} 16. Nb3 {[%clk 0:02:39]}  Na4 {[%clk 0:01:59]} 17. Nxd4 {[%clk 0:02:37]}  Nxb2 {[%clk 0:01:59]} 18. Rxb2 {[%clk 0:02:36]}  Qf6 {[%clk 0:01:59]} 19. Nxe6 {[%clk 0:02:10]}  Bxe6 {[%clk 0:01:45]} 20. Rxb7 {[%clk 0:02:08]}  Rad8 {[%clk 0:01:45]} 21. Rab1 {[%clk 0:02:02]}  Bxc4 {[%clk 0:01:44]} 22. Be4 {[%clk 0:01:53]}  Bxa2 {[%clk 0:01:36]} 23. Ra1 {[%clk 0:01:52]}  Bd5 {[%clk 0:01:36]} 24. Bxd5 {[%clk 0:01:44]}  Rxd5 {[%clk 0:01:37]} 25. Ra3 {[%clk 0:01:36]}  Rfd8 {[%clk 0:01:32]} 26. Kg2 {[%clk 0:01:29]}  Qc6 {[%clk 0:01:31]} 27. Qf3 {[%clk 0:01:02]}  Qxb7 {[%clk 0:01:29]} 28. Rxa5 {[%clk 0:01:03]}  Qd7 {[%clk 0:01:24]} 29. Ra1 {[%clk 0:00:53]}  Rxd3 {[%clk 0:01:24]} 30. Qf4 {[%clk 0:00:53]}  Qd5+ {[%clk 0:01:23]} 31. Kh3 {[%clk 0:00:53]}  Rd4 {[%clk 0:01:20]} 32. Qe3 {[%clk 0:00:52]}  Qf5+ {[%clk 0:01:14]} 33. Kg2 {[%clk 0:00:51]}  Qe4+ {[%clk 0:01:14]} 34. Qxe4 {[%clk 0:00:51]}  Rxe4 {[%clk 0:01:15]} 35. Ra3 {[%clk 0:00:51]}  g6 {[%clk 0:01:14]} 36. Rf3 {[%clk 0:00:50]}  h5 {[%clk 0:01:14]} 37. h4 {[%clk 0:00:50]}  Rd5 {[%clk 0:01:13]} 38. Rc3 {[%clk 0:00:49]}  Re2 {[%clk 0:01:12]} 39. Kf1 {[%clk 0:00:49]}  Ra2 {[%clk 0:01:11]} 40. Rc8+ {[%clk 0:00:45]}  Kg7 {[%clk 0:01:11]} 41. Rc3 {[%clk 0:00:45]}  Rf5 {[%clk 0:01:10]} 42. f3 {[%clk 0:00:45]}  Rb5 {[%clk 0:01:11]} 43. Rc1 {[%clk 0:00:45]}  Rbb2 {[%clk 0:01:10]} 0-1

[Event "January 9 Early 2024"]
[Site "https://www.chess.com"]
[Date "2024.01.11"]
[Round "4"]
[White "Mihajlovskij, Sergei"]
[Black "Krivenko, Dion"]
[Result "1-0"]
[Board "65"]
[TimeControl "180+1"]
[WhiteFideId "13500805"]
[BlackFideId "4508378"]
[WhiteElo "2223"]
[BlackElo "2430"]
[WhiteTeam "BLR"]
[BlackTeam "EST"]
[WhiteClock "0:01:25"]
[BlackClock "0:00:10"]

1. e4 {[%clk 0:03:00]}  e5 {[%clk 0:02:45]} 2. Nf3 {[%clk 0:02:59]}  Nf6 {[%clk 0:02:44]} 3. Nc3 {[%clk 0:02:57]}  Nc6 {[%clk 0:02:41]} 4. g3 {[%clk 0:02:57]}  h5 {[%clk 0:02:34]} 5. Bg2 {[%clk 0:02:57]}  Bc5 {[%clk 0:02:30]} 6. O-O {[%clk 0:02:57]}  d6 {[%clk 0:02:31]} 7. h3 {[%clk 0:02:54]}  Be6 {[%clk 0:02:28]} 8. a3 {[%clk 0:02:53]}  Qd7 {[%clk 0:02:28]} 9. d3 {[%clk 0:02:47]}  Bxh3 {[%clk 0:02:24]} 10. Bg5 {[%clk 0:02:40]}  Be6 {[%clk 0:02:12]} 11. b4 {[%clk 0:02:34]}  Bb6 {[%clk 0:02:09]} 12. Rb1 {[%clk 0:02:31]}  Nd4 {[%clk 0:02:05]} 13. Nxd4 {[%clk 0:02:27]}  Bxd4 {[%clk 0:02:05]} 14. Ne2 {[%clk 0:02:28]}  Bb6 {[%clk 0:02:02]} 15. c4 {[%clk 0:02:25]}  a6 {[%clk 0:01:47]} 16. Qc2 {[%clk 0:02:24]}  Ng4 {[%clk 0:01:30]} 17. c5 {[%clk 0:02:22]}  Ba7 {[%clk 0:01:29]} 18. d4 {[%clk 0:02:17]}  f6 {[%clk 0:01:19]} 19. Bd2 {[%clk 0:02:16]}  h4 {[%clk 0:01:11]} 20. d5 {[%clk 0:02:12]}  Bf7 {[%clk 0:01:10]} 21. Bf3 {[%clk 0:01:59]}  hxg3 {[%clk 0:00:41]} 22. Nxg3 {[%clk 0:02:00]}  Nh2 {[%clk 0:00:36]} 23. Bg2 {[%clk 0:01:59]}  Nxf1 {[%clk 0:00:36]} 24. Kxf1 {[%clk 0:01:54]}  O-O {[%clk 0:00:23]} 25. Ke2 {[%clk 0:01:41]}  Qb5+ {[%clk 0:00:22]} 26. Ke1 {[%clk 0:01:40]}  dxc5 {[%clk 0:00:22]} 27. Bf1 {[%clk 0:01:40]}  c4 {[%clk 0:00:20]} 28. Bxc4 {[%clk 0:01:39]}  Qd7 {[%clk 0:00:20]} 29. Qd1 {[%clk 0:01:37]}  Qh3 {[%clk 0:00:19]} 30. Qf3 {[%clk 0:01:32]}  Qh2 {[%clk 0:00:15]} 31. Ke2 {[%clk 0:01:31]}  Qh7 {[%clk 0:00:09]} 32. Rh1 {[%clk 0:01:30]}  Qg6 {[%clk 0:00:10]} 33. Nf5 {[%clk 0:01:25]}  c6 {[%clk 0:00:10]} 34. Ne7# {[%clk 0:01:25]} 1-0

[Event "January 9 Early 2024"]
[Site "https://www.chess.com"]
[Date "2024.01.11"]
[Round "4"]
[White "Bacrot, Etienne"]
[Black "Cori T., Deysi"]
[Result "1-0"]
[Board "66"]
[TimeControl "180+1"]
[WhiteFideId "605506"]
[BlackFideId "3801934"]
[WhiteElo "2835"]
[BlackElo "2598"]
[WhiteTeam "FRA"]
[BlackTeam "PER"]
[WhiteClock "0:01:04"]
[BlackClock "0:00:20"]

1. e4 {[%clk 0:03:00]}  g6 {[%clk 0:02:59]} 2. d4 {[%clk 0:03:00]}  Bg7 {[%clk 0:03:00]} 3. Nc3 {[%clk 0:03:00]}  d6 {[%clk 0:03:00]} 4. h4 {[%clk 0:03:00]}  h5 {[%clk 0:02:59]} 5. Bc4 {[%clk 0:02:54]}  a6 {[%clk 0:02:55]} 6. a4 {[%clk 0:02:53]}  Bg4 {[%clk 0:02:45]} 7. f3 {[%clk 0:02:51]}  Bd7 {[%clk 0:02:45]} 8. Be3 {[%clk 0:02:47]}  e6 {[%clk 0:02:45]} 9. Qd2 {[%clk 0:02:47]}  c6 {[%clk 0:02:45]} 10. Nh3 {[%clk 0:02:29]}  Qxh4+ {[%clk 0:02:36]} 11. Nf2 {[%clk 0:02:21]}  Qe7 {[%clk 0:02:34]} 12. Bg5 {[%clk 0:02:17]}  Bf6 {[%clk 0:02:29]} 13. Bxf6 {[%clk 0:02:17]}  Qxf6 {[%clk 0:02:30]} 14. e5 {[%clk 0:02:14]}  dxe5 {[%clk 0:02:17]} 15. Nce4 {[%clk 0:02:14]}  Qg7 {[%clk 0:02:16]} 16. Nd6+ {[%clk 0:02:01]}  Kf8 {[%clk 0:02:11]} 17. Qb4 {[%clk 0:01:59]}  Ne7 {[%clk 0:01:51]} 18. Qxb7 {[%clk 0:01:57]}  exd4 {[%clk 0:01:50]} 19. f4 {[%clk 0:01:29]}  d3 {[%clk 0:01:19]} 20. Qxa8 {[%clk 0:01:23]}  Qxb2 {[%clk 0:01:13]} 21. O-O {[%clk 0:01:23]}  Kg7 {[%clk 0:01:03]} 22. Rab1 {[%clk 0:01:15]}  Qd4 {[%clk 0:01:00]} 23. Rxb8 {[%clk 0:01:13]}  Rxb8 {[%clk 0:00:43]} 24. Qxb8 {[%clk 0:01:12]}  dxc2 {[%clk 0:00:41]} 25. Ne8+ {[%clk 0:01:05]}  Bxe8 {[%clk 0:00:28]} 26. Qe5+ {[%clk 0:01:04]}  Qxe5 {[%clk 0:00:25]} 27. fxe5 {[%clk 0:01:05]}  c5 {[%clk 0:00:23]} 28. Bb3 {[%clk 0:01:05]}  Nf5 {[%clk 0:00:20]} 29. Bxc2 {[%clk 0:01:04]}  Ne3 {[%clk 0:00:20]} 30. Rc1 {[%clk 0:01:04]} 1-0

[Event "January 9 Early 2024"]
[Site "https://www.chess.com"]
[Date "2024.01.11"]
[Round "4"]
[White "Wagner, Dennis"]
[Black "Skuhala, Jernej"]
[Result "1-0"]
[Board "68"]
[TimeControl "180+1"]
[WhiteFideId "24650684"]
[BlackFideId "14605651"]
[WhiteElo "2751"]
[BlackElo "2542"]
[WhiteTeam "GER"]
[BlackTeam "SLO"]
[WhiteClock "0:01:03"]
[BlackClock "0:00:05"]

1. Nf3 {[%clk 0:03:00]}  Nf6 {[%clk 0:02:55]} 2. c4 {[%clk 0:02:57]}  e6 {[%clk 0:02:55]} 3. Nc3 {[%clk 0:02:58]}  d5 {[%clk 0:02:56]} 4. e3 {[%clk 0:02:58]}  Bb4 {[%clk 0:02:56]} 5. Qa4+ {[%clk 0:02:57]}  Nc6 {[%clk 0:02:54]} 6. d4 {[%clk 0:02:42]}  Bd7 {[%clk 0:02:53]} 7. Qc2 {[%clk 0:02:41]}  O-O {[%clk 0:02:53]} 8. Bd2 {[%clk 0:02:37]}  dxc4 {[%clk 0:02:53]} 9. Bxc4 {[%clk 0:02:37]}  Bd6 {[%clk 0:02:51]} 10. O-O {[%clk 0:02:33]}  e5 {[%clk 0:02:51]} 11. h3 {[%clk 0:02:32]}  exd4 {[%clk 0:02:35]} 12. exd4 {[%clk 0:02:32]}  h6 {[%clk 0:02:35]} 13. a3 {[%clk 0:02:31]}  Qc8 {[%clk 0:02:31]} 14. Bxh6 {[%clk 0:02:24]}  Bf5 {[%clk 0:02:26]} 15. Qd2 {[%clk 0:02:10]}  gxh6 {[%clk 0:02:06]} 16. Qxh6 {[%clk 0:02:10]}  Nh7 {[%clk 0:02:07]} 17. Rae1 {[%clk 0:01:56]}  Re8 {[%clk 0:01:59]} 18. Ng5 {[%clk 0:01:40]}  Rxe1 {[%clk 0:00:27]} 19. Bxf7+ {[%clk 0:01:38]}  Kh8 {[%clk 0:00:27]} 20. Nxh7 {[%clk 0:01:02]}  Rxf1+ {[%clk 0:00:06]} 21. Kxf1 {[%clk 0:01:03]}  Bd3+ {[%clk 0:00:05]} 22. Kg1 {[%clk 0:01:03]} 1-0

[Event "January 9 Early 2024"]
[Site "https://www.chess.com"]
[Date "2024.01.11"]
[Round "4"]
[White "Skaric, Djuro"]
[Black "Tilahun , Abel Mathewos"]
[Result "1-0"]
[Board "69"]
[TimeControl "180+1"]
[WhiteFideId "934569"]
[BlackFideId "15702391"]
[WhiteElo "2294"]
[BlackElo "2021"]
[WhiteTeam "SRB"]
[BlackTeam "ETH"]
[WhiteClock "0:01:33"]
[BlackClock "0:00:01"]

1. g3 {[%clk 0:03:00]}  d5 {[%clk 0:02:59]} 2. Bg2 {[%clk 0:03:01]}  Nf6 {[%clk 0:02:58]} 3. d3 {[%clk 0:03:02]}  e5 {[%clk 0:02:57]} 4. Nf3 {[%clk 0:03:03]}  c6 {[%clk 0:02:55]} 5. O-O {[%clk 0:03:03]}  Bd6 {[%clk 0:02:54]} 6. Nc3 {[%clk 0:03:04]}  O-O {[%clk 0:02:53]} 7. e4 {[%clk 0:03:01]}  Be6 {[%clk 0:02:52]} 8. h3 {[%clk 0:03:00]}  Nbd7 {[%clk 0:02:48]} 9. Ng5 {[%clk 0:02:59]}  h6 {[%clk 0:02:47]} 10. Nxe6 {[%clk 0:02:59]}  fxe6 {[%clk 0:02:47]} 11. f4 {[%clk 0:02:59]}  Qe8 {[%clk 0:02:33]} 12. fxe5 {[%clk 0:02:59]}  Nxe5 {[%clk 0:02:27]} 13. d4 {[%clk 0:02:59]}  Nxe4 {[%clk 0:02:00]} 14. Nxe4 {[%clk 0:02:46]}  Rxf1+ {[%clk 0:01:54]} 15. Bxf1 {[%clk 0:02:45]}  dxe4 {[%clk 0:01:28]} 16. dxe5 {[%clk 0:02:43]}  Bxe5 {[%clk 0:01:26]} 17. Bf4 {[%clk 0:02:25]}  Rd8 {[%clk 0:01:03]} 18. Qg4 {[%clk 0:02:24]}  Bxb2 {[%clk 0:01:00]} 19. Rb1 {[%clk 0:02:22]}  Bd4+ {[%clk 0:00:58]} 20. Kg2 {[%clk 0:02:14]}  Qf7 {[%clk 0:00:53]} 21. Bc4 {[%clk 0:02:11]}  Re8 {[%clk 0:00:48]} 22. Rf1 {[%clk 0:02:10]}  Qd7 {[%clk 0:00:31]} 23. Bxh6 {[%clk 0:02:02]}  b5 {[%clk 0:00:30]} 24. Bb3 {[%clk 0:02:01]}  a5 {[%clk 0:00:30]} 25. a3 {[%clk 0:02:00]}  a4 {[%clk 0:00:28]} 26. Ba2 {[%clk 0:02:00]}  e3 {[%clk 0:00:17]} 27. Bg5 {[%clk 0:01:40]}  Bc5 {[%clk 0:00:08]} 28. Re1 {[%clk 0:01:35]}  Qd2+ {[%clk 0:00:04]} 29. Re2 {[%clk 0:01:35]}  Qd6 {[%clk 0:00:02]} 30. Bxe3 {[%clk 0:01:33]}  Bxe3 {[%clk 0:00:01]} 31. Rxe3 {[%clk 0:01:33]} 1-0

[Event "January 9 Early 2024"]
[Site "https://www.chess.com"]
[Date "2024.01.11"]
[Round "4"]
[White "Tomb, Maroun"]
[Black "Aronian, Levon"]
[Result "0-1"]
[Board "70"]
[TimeControl "180+1"]
[WhiteFideId "5300398"]
[BlackFideId "13300474"]
[WhiteElo "2592"]
[BlackElo "3089"]
[WhiteTeam "LBN"]
[BlackTeam "USA"]
[WhiteClock "0:00:16"]
[BlackClock "0:00:59"]

1. e4 {[%clk 0:02:19]}  c5 {[%clk 0:02:57]} 2. Ne2 {[%clk 0:02:19]}  Nf6 {[%clk 0:02:55]} 3. Nbc3 {[%clk 0:02:19]}  d6 {[%clk 0:02:54]} 4. g3 {[%clk 0:02:19]}  e5 {[%clk 0:02:47]} 5. Bg2 {[%clk 0:02:19]}  Nc6 {[%clk 0:02:47]} 6. d3 {[%clk 0:02:18]}  g6 {[%clk 0:02:44]} 7. f4 {[%clk 0:02:18]}  Bg7 {[%clk 0:02:43]} 8. O-O {[%clk 0:02:18]}  O-O {[%clk 0:02:43]} 9. h3 {[%clk 0:02:14]}  Nd4 {[%clk 0:02:38]} 10. g4 {[%clk 0:02:13]}  b5 {[%clk 0:02:31]} 11. Nxd4 {[%clk 0:02:00]}  cxd4 {[%clk 0:02:30]} 12. Nxb5 {[%clk 0:02:00]}  Ba6 {[%clk 0:02:22]} 13. a4 {[%clk 0:01:53]}  Qb6 {[%clk 0:02:14]} 14. g5 {[%clk 0:01:49]}  Nh5 {[%clk 0:01:44]} 15. f5 {[%clk 0:01:48]}  f6 {[%clk 0:01:45]} 16. h4 {[%clk 0:01:29]}  Rac8 {[%clk 0:01:41]} 17. fxg6 {[%clk 0:01:13]}  hxg6 {[%clk 0:01:40]} 18. Bh3 {[%clk 0:01:13]}  d5 {[%clk 0:01:25]} 19. gxf6 {[%clk 0:01:05]}  Bxf6 {[%clk 0:01:26]} 20. Qg4 {[%clk 0:01:05]}  Kg7 {[%clk 0:01:12]} 21. exd5 {[%clk 0:00:54]}  Rxc2 {[%clk 0:01:12]} 22. Bg5 {[%clk 0:00:49]}  Bc8 {[%clk 0:01:09]} 23. Qf3 {[%clk 0:00:27]}  Be7 {[%clk 0:01:09]} 24. Bxc8 {[%clk 0:00:17]}  Rxf3 {[%clk 0:01:06]} 25. Rxf3 {[%clk 0:00:18]}  Bxg5 {[%clk 0:01:05]} 26. hxg5 {[%clk 0:00:19]}  Rxc8 {[%clk 0:01:04]} 27. Raf1 {[%clk 0:00:17]}  Nf4 {[%clk 0:01:04]} 28. d6 {[%clk 0:00:17]}  Qb7 {[%clk 0:01:00]} 29. Nc7 {[%clk 0:00:16]}  Rxc7 {[%clk 0:00:59]} 30. dxc7 {[%clk 0:00:16]}  Qxc7 {[%clk 0:00:59]} 0-1